lending/lending_fUSD_20240604
["ID","MTS","AMOUNT","RATE_DAILY","PERIOD"]
[328518455,1717485049036,-219.47826,0.00022,7]
[328518456,1717485049046,-219.47826,0.00022,7]
[328518457,1717485049055,-151.0,0.00022,7]
[328518458,1717485049064,-315.174698,0.00022,7]
[328518459,1717485049074,-315.174698,0.00022,7]
[328518460,1717485049084,-970.302668,0.00022,7]
[328518461,1717485049093,-438.364877,0.00022,7]
[328518462,1717485049103,-438.364877,0.00022,7]
[328518463,1717485049113,-961.019171,0.00022,7]
[328518464,1717485049122,-970.302668,0.00022,7]
[328518465,1717485049132,-988.827302,0.00022,7]
[328518466,1717485049140,-151.0,0.00022,7]
[328518467,1717485049150,-961.019171,0.00022,7]
[328518468,1717485049159,-988.827302,0.00022,7]
[328518469,1717485049169,-1644.597923,0.00022,7]
[328518470,1717485049178,-1644.597923,0.00022,7]
[328518471,1717485049188,-6695.233978,0.00022,7]
[328518472,1717485049198,-6695.233982,0.00022,7]
[328518473,1717485049207,-298.679145,0.00022,7]
[328518474,1717485049216,-360.692086,0.00022,7]
[328518475,1717485049337,-298.679142,0.00022,7]
[328518476,1717485049346,-379.198321,0.00022,7]
[328518477,1717485049356,-360.692092,0.00022,7]
[328518478,1717485049367,-151.0,0.00022,7]
[328518479,1717485049376,-379.198313,0.00022,7]
[328518480,1717485049385,-1803.015054,0.00022,7]
[328518481,1717485049396,-151.0,0.00022,7]
[328518482,1717485049405,-1803.015056,0.00022,7]
[328518483,1717485049415,-348.524865,0.00022,7]
[328518484,1717485049424,-348.524866,0.00022,7]
[328518485,1717485049433,-151.560963,0.00022,7]
[328518486,1717485049443,-150.0,0.00022,3]
[328518487,1717485049452,-151.560962,0.00022,7]
[328518488,1717485049461,-416.253798,0.00022,7]
[328518489,1717485049471,-416.253789,0.00022,7]
[328518490,1717485049480,-150.0,0.000225,3]
[328518491,1717485049490,-151.0,0.00022569,3]
[328518492,1717485049499,-151.0,0.00022627,7]
[328518493,1717485049509,-269.390644,0.00022627,7]
[328518494,1717485049518,-177.186012,0.00022627,7]
[328518495,1717485049527,-644.252075,0.00022627,7]
[328518496,1717485049536,-177.186012,0.00022627,7]
[328518497,1717485049545,-644.252075,0.00022627,7]
[328518498,1717485049555,-167.929032,0.00022627,7]
[328518499,1717485049564,-167.929032,0.00022627,7]
[328518500,1717485049573,-151.0,0.00022627,7]
[328518501,1717485049583,-4413.41833707,0.00022627,2]
[328518502,1717485049592,-792.40532099,0.000229,5]
[328518503,1717485049601,-1252.1626429,0.00022965,2]
[328518504,1717485049614,-4523.8373571,0.00022965,2]
[328518505,1717485049624,-5148.0,0.00022965,2]
[328518506,1717485049633,-290.0,0.00022965,2]
[328518507,1717485049642,-1470.0,0.00022965,2]
[328518508,1717485049651,-150.0,0.00023,3]
[328518509,1717485049660,-150.0,0.000235,3]
[328518510,1717485049669,-1337.537297,0.0002386,7]
[328518511,1717485049678,-1337.537297,0.0002386,7]
[328518512,1717485049687,-334.284065,0.0002386,7]
[328518513,1717485049697,-295.688016,0.0002386,7]
[328518514,1717485049706,-264.194448,0.0002386,7]
[328518515,1717485049715,-334.284065,0.0002386,7]
[328518516,1717485049725,-264.194448,0.0002386,7]
[328518517,1717485049734,-151.0,0.0002386,7]
[328518518,1717485049744,-1089.828996,0.0002386,7]
[328518519,1717485049753,-1089.828996,0.0002386,7]
[328518520,1717485049762,-1729.281875,0.0002386,7]
[328518521,1717485049772,-1729.281875,0.0002386,7]
[328518522,1717485049781,-226.11146,0.0002386,2]
[328518523,1717485049791,-54520.05684374,0.00024,2]
[328518524,1717485049802,-183.51375,0.00024,7]
[328518525,1717485049811,-183.51375,0.00024,7]
[328518526,1717485049820,-166.677551,0.00024,7]
[328518527,1717485049830,-166.677551,0.00024,7]
[328518528,1717485049839,-151.0,0.00024,7]
[328518529,1717485049849,-151.0,0.00024,7]
[328518530,1717485049858,-151.0,0.00024,7]
[328518531,1717485049867,-180.840553,0.00024,7]
[328518532,1717485049877,-180.840553,0.00024,7]
[328518533,1717485049887,-500.0,0.00024,7]
[328518534,1717485049896,-500.0,0.00024,7]
[328518535,1717485049906,-151.0,0.00024,7]
[328518536,1717485049915,-180.578634,0.00024,7]
[328518537,1717485049925,-180.578634,0.00024,7]
[328518538,1717485049934,-151.0,0.00024,7]
[328518539,1717485049944,-151.0,0.00024,7]
[328518540,1717485049954,-681.830435,0.00024,7]
[328518541,1717485049963,-85876.48550024,0.00024,3]
[328518542,1717485049972,-284.191044,0.00024,7]
[328518543,1717485049982,-681.830435,0.00024,7]
[328518544,1717485049991,-284.191044,0.00024,7]
[328518545,1717485050001,-264.492115,0.00024,7]
[328518546,1717485050011,-264.492115,0.00024,7]
[328518547,1717485050020,-151.0,0.00024,7]
[328518548,1717485050029,-210.150999,0.00024,7]
[328518549,1717485050038,-264.492115,0.00024,7]
[328518550,1717485050048,-264.492119,0.00024,7]
[328518551,1717485050057,-177.524272,0.00024,7]
[328518552,1717485050067,-177.524272,0.00024,7]
[328518553,1717485050077,-177.524272,0.00024,7]
[328518554,1717485050086,-177.524265,0.00024,7]
[328518555,1717485050095,-436.919117,0.00024,7]
[328518556,1717485050105,-177.186012,0.00024,7]
[328518557,1717485050115,-436.919112,0.00024,7]
[328518558,1717485050124,-151.0,0.00024,7]
[328518559,1717485050134,-644.252075,0.00024,7]
[328518560,1717485050143,-177.186018,0.00024,7]
[328518561,1717485050153,-644.25208,0.00024,7]
[328518562,1717485050162,-167.929032,0.00024,7]
[328518563,1717485050171,-167.929033,0.00024,7]
[328518564,1717485050181,-151.0,0.00024,7]
[328518565,1717485050191,-151.0,0.00024,7]
[328518566,1717485050200,-434.678208,0.00024,2]
[328518567,1717485050210,-434.678203,0.00024,2]
[328518568,1717485050220,-274.916866,0.00024,7]
[328518569,1717485050229,-274.916876,0.00024,7]
[328518570,1717485050239,-204.06829,0.00024,7]
[328518571,1717485050248,-204.068291,0.00024,7]
[328518572,1717485050258,-151.0,0.00024,7]
[328518573,1717485050268,-259.132086,0.00024,7]
[328518574,1717485050278,-151.0,0.00024,7]
[328518575,1717485050287,-259.132092,0.00024,7]
[328518576,1717485050297,-151.0,0.00024,7]
[328518577,1717485050307,-1903.189982,0.00024,7]
[328518578,1717485050320,-1903.189981,0.00024,7]
[328518579,1717485050331,-151.0,0.00024,7]
[328518580,1717485050340,-219.47826,0.00024,7]
[328518581,1717485050350,-219.478251,0.00024,7]
[328518582,1717485050360,-151.0,0.00024,7]
[328518583,1717485050369,-315.174698,0.00024,7]
[328518584,1717485050378,-315.17469,0.00024,7]
[328518585,1717485050388,-970.302668,0.00024,7]
[328518586,1717485050399,-438.364877,0.00024,7]
[328518587,1717485050409,-438.364878,0.00024,7]
[328518588,1717485050418,-961.019171,0.00024,7]
[328518589,1717485050427,-434.22143985,0.00024,2]
[328518590,1717485050436,-970.302672,0.00024,7]
[328518591,1717485050446,-988.827302,0.00024,7]
[328518592,1717485050455,-151.0,0.00024,7]
[328518593,1717485050465,-961.019173,0.00024,7]
[328518594,1717485050475,-988.827292,0.00024,7]
[328518595,1717485050484,-1644.597923,0.00024,7]
[328518596,1717485050494,-1644.597918,0.00024,7]
[328518597,1717485050503,-295.38219725,0.00024,2]
[328518598,1717485050514,-150.0,0.00024,4]
[328518599,1717485050523,-4413.41833707,0.00024082,2]
[328518600,1717485050533,-180.0,0.000241,7]
[328518601,1717485050542,-151.0,0.00024102,3]
[328518602,1717485050551,-525.35,0.00024121,2]
[328518603,1717485050560,-151.58,0.00024384,2]
[328518604,1717485050569,-155.4,0.00024384,2]
[328518605,1717485050579,-160.56,0.00024384,2]
[328518606,1717485050588,-155.59,0.00024384,2]
[328518607,1717485050597,-158.46,0.00024384,2]
[328518608,1717485050606,-1337.537297,0.00024396,7]
[328518609,1717485050616,-1337.537297,0.00024396,7]
[328518610,1717485050626,-71.06389304,0.00024396,7]
[328518611,1717485050641,-263.22017196,0.00024396,7]
[328518612,1717485050651,-264.194448,0.00024396,7]
[328518613,1717485050661,-334.284065,0.00024396,7]
[328518614,1717485050671,-264.194448,0.00024396,7]
[328518615,1717485050681,-151.0,0.00024396,7]
[328518616,1717485050691,-1089.828996,0.00024396,7]
[328518617,1717485050700,-1089.828996,0.00024396,7]
[328518618,1717485050710,-1729.281875,0.00024396,7]
[328518619,1717485050719,-1729.281875,0.00024396,7]
[328518620,1717485050729,-8996.011854,0.00024396,2]
[328518621,1717485050739,-151.245013,0.00024396,2]
[328518622,1717485050748,-169.69538,0.00024396,2]
[328518623,1717485050758,-496.510575,0.00024396,2]
[328518624,1717485050768,-1505.50155077,0.000245,3]
[328518625,1717485050777,-150.0,0.000245,4]
[328518626,1717485050786,-1000.0,0.00024688,2]
[328518627,1717485050796,-8996.011854,0.00024701,2]
[328518628,1717485050806,-496.510575,0.00024701,2]
[328518629,1717485050815,-615.0,0.00024758,2]
[328518630,1717485050825,-1648.0,0.00024758,2]
[328518631,1717485050835,-1264.0,0.00024758,2]
[328518632,1717485050844,-1830.0,0.00024758,2]
[328518633,1717485050854,-808.0,0.00024758,2]
[328518634,1717485050863,-446.0,0.00024758,2]
[328518635,1717485050873,-165.0,0.00024758,2]
[328518636,1717485050882,-1283.571,0.00024758,2]
[328518637,1717485050891,-150.0,0.00024758,2]
[328518638,1717485050900,-851.48,0.00024758,2]
[328518639,1717485050909,-216.0,0.00024758,2]
[328518640,1717485050919,-150.0,0.00024758,2]
[328518641,1717485050928,-3171.0,0.00024758,2]
[328518642,1717485050938,-2122.0,0.00024758,2]
[328518643,1717485050948,-180.840553,0.00024758,7]
[328518644,1717485050958,-180.840558,0.00024758,7]
[328518645,1717485050967,-500.0,0.00024758,7]
[328518646,1717485050977,-500.0,0.00024758,7]
[328518647,1717485050986,-151.0,0.00024758,7]
[328518648,1717485050995,-180.578634,0.00024758,7]
[328518649,1717485051006,-180.57864145,0.00024758,7]
[328518650,1717485051015,-193.115357,0.00024758,7]
[328518651,1717485051025,-151.0,0.00024758,7]
[328518652,1717485051140,-681.830435,0.00024758,7]
[328518653,1717485051150,-284.191044,0.00024758,7]
[328518654,1717485051160,-681.830442,0.00024758,7]
[328518655,1717485051169,-284.191047,0.00024758,7]
[328518656,1717485051178,-667.79366173,0.00024798,2]
[328518657,1717485051188,-667.79366173,0.00024798,2]
[328518658,1717485051197,-667.79366173,0.00024798,2]
[328518659,1717485051207,-667.79366173,0.00024798,2]
[328518660,1717485051216,-667.79366173,0.00024798,2]
[328518661,1717485051225,-667.79366173,0.00024798,2]
[328518662,1717485051235,-667.79366173,0.00024798,2]
[328518663,1717485051244,-548.88488712,0.000248,2]
[328518664,1717485051254,-6789.47504739,0.000249,2]
[328518665,1717485051263,-224.94068633,0.00025,2]
[328518666,1717485051273,-190.14336709,0.00025,2]
[328518667,1717485051282,-578.64631569,0.00025,14]
[328518668,1717485051292,-1625.57291006,0.00025,2]
[328518669,1717485051301,-160.0,0.00025,2]
[328518670,1717485051311,-249.36633793,0.00025,2]
[328518671,1717485051323,-1250.0,0.00025,2]
[328518672,1717485051331,-325.73352634,0.00025,2]
[328518673,1717485051340,-474.43502146,0.00025,2]
[328518674,1717485051351,-8996.011854,0.00025006,2]
[328518675,1717485051361,-151.245013,0.00025006,2]
[328518676,1717485051371,-496.510575,0.00025006,2]
[328518677,1717485051380,-200.0,0.000251,8]
[328518678,1717485051389,-8996.011854,0.00025311,2]
[328518679,1717485051401,-496.510575,0.00025311,2]
[328518680,1717485051410,-183.51375,0.00025311,7]
[328518681,1717485051420,-183.51375,0.00025311,7]
[328518682,1717485051430,-166.677551,0.00025311,7]
[328518683,1717485051439,-166.677547,0.00025311,7]
[328518684,1717485051448,-151.0,0.00025311,7]
[328518685,1717485051458,-1426.11746437,0.00025374,10]
[328518686,1717485051467,-12994.469579,0.00025375,2]
[328518687,1717485051476,-1251.739029,0.00025375,2]
[328518688,1717485051485,-308.868413,0.00025375,2]
[328518689,1717485051495,-1337.537297,0.00025375,7]
[328518690,1717485051504,-1337.537296,0.00025375,7]
[328518691,1717485051513,-334.284065,0.00025375,7]
[328518692,1717485051523,-264.194448,0.00025375,7]
[328518693,1717485051532,-334.284069,0.00025375,7]
[328518694,1717485051541,-264.194456,0.00025375,7]
[328518695,1717485051550,-151.0,0.00025375,7]
[328518696,1717485051560,-1089.828996,0.00025375,7]
[328518697,1717485051569,-1089.82899,0.00025375,7]
[328518698,1717485051580,-1729.281875,0.00025375,7]
[328518699,1717485051589,-1729.281873,0.00025375,7]
[328518700,1717485051598,-4413.41833707,0.00025536,2]
[328518701,1717485051607,-8996.011854,0.00025616,2]
[328518702,1717485051616,-151.245013,0.00025616,2]
[328518703,1717485051626,-496.510575,0.00025616,2]
[328518704,1717485051636,-151.0,0.00025635,5]
[328518705,1717485051646,-12994.469579,0.00025692,2]
[328518706,1717485051655,-1251.739029,0.00025692,2]
[328518707,1717485051665,-308.868413,0.00025692,2]
[328518708,1717485051675,-319.68177631,0.00025882,2]
[328518709,1717485051684,-5776.0,0.00025965,2]
[328518710,1717485051693,-5148.0,0.00025965,2]
[328518711,1717485051703,-290.0,0.00025965,2]
[328518712,1717485051712,-671.561,0.00025965,2]
[328518713,1717485051722,-23507.2236463,0.00026,5]
[328518714,1717485051732,-926.859055,0.00026,15]
[328518715,1717485051741,-12994.469579,0.00026009,2]
[328518716,1717485051751,-1251.739029,0.00026009,2]
[328518717,1717485051760,-308.868413,0.00026009,2]
[328518718,1717485051770,-12994.469579,0.00026327,2]
[328518719,1717485051779,-1251.739029,0.00026327,2]
[328518720,1717485051789,-308.868413,0.00026327,2]
[328518721,1717485051798,-667.79366173,0.00026344,2]
[328518722,1717485051808,-226.11146,0.0002636,2]
[328518723,1717485051817,-525.35,0.00026385,2]
[328518724,1717485051828,-23858.72510778,0.000265,2]
[328518725,1717485051837,-12994.469579,0.00026644,2]
[328518726,1717485051848,-1251.739029,0.00026644,2]
[328518727,1717485051859,-308.868413,0.00026644,2]
[328518728,1717485051869,-4413.41833707,0.00026991,2]
[328518729,1717485051879,-1300.0,0.00027,2]
[328518730,1717485051889,-200.593281,0.00027,2]
[328518731,1717485051900,-4025.22914722,0.00027,2]
[328518732,1717485051911,-151.0,0.00027168,5]
[328518733,1717485051920,-350.0,0.00027397,12]
[328518734,1717485051930,-204.632388,0.00027397,7]
[328518735,1717485051939,-204.632388,0.00027397,7]
[328518736,1717485051949,-204.632388,0.00027397,7]
[328518737,1717485051958,-204.632388,0.00027397,7]
[328518738,1717485051968,-204.632388,0.00027397,7]
[328518739,1717485051977,-204.632388,0.00027397,7]
[328518740,1717485051987,-204.632388,0.00027397,7]
[328518741,1717485051996,-204.632388,0.00027397,7]
[328518742,1717485052006,-204.632388,0.00027397,7]
[328518743,1717485052015,-204.632388,0.00027397,7]
[328518744,1717485052025,-204.632388,0.00027397,7]
[328518745,1717485052035,-204.632388,0.00027397,7]
[328518746,1717485052044,-204.632388,0.00027397,7]
[328518747,1717485052054,-204.632388,0.00027397,7]
[328518748,1717485052063,-204.632388,0.00027397,7]
[328518749,1717485052073,-204.632388,0.00027397,7]
[328518750,1717485052082,-204.632388,0.00027397,7]
[328518751,1717485052091,-204.632388,0.00027397,7]
[328518752,1717485052100,-204.632388,0.00027397,7]
[328518753,1717485052109,-204.632384,0.00027397,7]
[328518754,1717485052118,-151.0,0.00027397,7]
[328518755,1717485052128,-151.0,0.00027397,7]
[328518756,1717485052137,-151.0,0.00027397,7]
[328518757,1717485052146,-151.0,0.00027397,7]
[328518758,1717485052155,-151.0,0.00027397,7]
[328518759,1717485052165,-797.49,0.00027397,10]
[328518760,1717485052175,-664.57,0.00027397,10]
[328518761,1717485052184,-553.81,0.00027397,10]
[328518762,1717485052194,-300.0,0.00027397,10]
[328518763,1717485052203,-328.57001009,0.00027397,10]
[328518764,1717485052212,-1212.313,0.00027758,2]
[328518765,1717485052222,-153.917,0.00027758,2]
[328518766,1717485052231,-216.0,0.00027758,2]
[328518767,1717485052241,-3171.0,0.00027758,2]
[328518768,1717485052250,-2122.0,0.00027758,2]
[328518769,1717485052260,-500.0,0.00028,2]
[328518770,1717485052269,-667.79366173,0.00028122,2]
[328518771,1717485052279,-300.0,0.000282,2]
[328518772,1717485052289,-152.0,0.00028261,3]
[328518773,1717485052298,-4413.41833707,0.00028445,2]
[328518774,1717485052307,-2500.0,0.000285,5]
[328518775,1717485052319,-300.0,0.00028571,2]
[328518776,1717485052332,-525.35,0.00028649,2]
[328518777,1717485052341,-151.0,0.00028701,7]
[328518778,1717485052350,-1500.0,0.00028882,2]
[328518779,1717485052359,-300.0,0.00028942,2]
[328518780,1717485052368,-5602.704,0.00028965,2]
[328518781,1717485052378,-5141.563,0.00028965,2]
[328518782,1717485052387,-286.22,0.00028965,2]
[328518783,1717485052397,-300.0,0.00028999,10]
[328518784,1717485052407,-6524.70459297,0.00029,3]
[328518785,1717485052416,-533.71,0.00029,2]
[328518786,1717485052425,-451.38,0.00029,2]
[328518787,1717485052434,-1043.0,0.00029,7]
[328518788,1717485052443,-1000.0,0.00029,7]
[328518789,1717485052452,-1000.0,0.00029,7]
[328518790,1717485052461,-1000.0,0.00029,7]
[328518791,1717485052471,-1000.0,0.00029,7]
[328518792,1717485052480,-1000.0,0.00029,7]
[328518793,1717485052490,-1000.0,0.00029,7]
[328518794,1717485052500,-29589.96476802,0.00029,2]
[328518795,1717485052509,-9044.84250784,0.00029,2]
[328518796,1717485052519,-20000.0,0.00029,3]
[328518797,1717485052528,-52513.6432065,0.00029,2]
[328518798,1717485052538,-1486.96558484,0.00029,2]
[328518799,1717485052548,-1350.0,0.00029,2]
[328518800,1717485052557,-200.0,0.00029,2]
[328518801,1717485052566,-1056.12786303,0.00029,2]
[328518802,1717485052577,-4182.02459274,0.00029,2]
[328518803,1717485052586,-1500.0,0.00029,5]
[328518804,1717485052595,-947.63650848,0.00029056,2]
[328518805,1717485052604,-1500.0,0.00029203,2]
[328518806,1717485052614,-1500.0,0.00029236,2]
[328518807,1717485052623,-200.16752004,0.00029253,2]
[328518808,1717485052632,-254.93754303,0.00029253,2]
[328518809,1717485052642,-1500.0,0.0002928,2]
[328518810,1717485052651,-300.0,0.00029313,2]
[328518811,1717485052660,-157.54810325,0.00029325,2]
[328518812,1717485052669,-9833.26066404,0.00029347,2]
[328518813,1717485052679,-231.21800608,0.00029351,2]
[328518814,1717485052688,-231.21800608,0.00029358,2]
[328518815,1717485052794,-157.6578019,0.00029369,2]
[328518816,1717485052804,-160.40537533,0.00029399,2]
[328518817,1717485052813,-400.0,0.000294,10]
[328518818,1717485052823,-155.38725916,0.00029419,2]
[328518819,1717485052832,-157.54810325,0.00029448,2]
[328518820,1717485052842,-150.0,0.00029466,2]
[328518821,1717485052851,-231.21800608,0.00029489,2]
[328518822,1717485052860,-153.55224311,0.00029497,2]
[328518823,1717485052870,-1000.0,0.000295,7]
[328518824,1717485052879,-2266.011643,0.000295,2]
[328518825,1717485052888,-227.09630563,0.000295,3]
[328518826,1717485052897,-1500.0,0.000295,5]
[328518827,1717485052907,-400.0,0.000295,10]
[328518828,1717485052916,-378.0,0.0002955,15]
[328518829,1717485052925,-1821.0,0.00029558,15]
[328518830,1717485052934,-378.0,0.0002956,15]
[328518831,1717485052944,-378.0,0.0002956,15]
[328518832,1717485052953,-182.32,0.00029568,15]
[328518833,1717485052962,-1821.0,0.00029568,15]
[328518834,1717485052972,-1821.0,0.00029568,15]
[328518835,1717485052982,-378.0,0.0002957,15]
[328518836,1717485052991,-378.0,0.0002957,15]
[328518837,1717485053000,-150.5,0.00029578,15]
[328518838,1717485053010,-1821.0,0.00029578,15]
[328518839,1717485053019,-1821.0,0.00029578,15]
[328518840,1717485053029,-150.0,0.00029579,2]
[328518841,1717485053038,-300.0,0.00029586,10]
[328518842,1717485053048,-1359.058962,0.00029586,2]
[328518843,1717485053057,-648.18099897,0.00029588,2]
[328518844,1717485053066,-500.0,0.00029589,6]
[328518845,1717485053076,-500.0,0.00029589,6]
[328518846,1717485053086,-500.0,0.00029589,6]
[328518847,1717485053095,-500.0,0.00029589,6]
[328518848,1717485053104,-500.0,0.00029589,6]
[328518849,1717485053113,-500.0,0.00029589,6]
[328518850,1717485053122,-500.0,0.00029589,6]
[328518851,1717485053132,-500.0,0.00029589,6]
[328518852,1717485053141,-430.70731764,0.00029589,6]
[328518853,1717485053151,-500.0,0.00029589,6]
[328518854,1717485053160,-500.0,0.00029589,6]
[328518855,1717485053169,-505.86635933,0.00029589,6]
[328518856,1717485053179,-500.0,0.00029589,6]
[328518857,1717485053188,-623.66435776,0.00029589,6]
[328518858,1717485053198,-523.34,0.00029589,6]
[328518859,1717485053207,-523.34,0.00029589,6]
[328518860,1717485053216,-523.34,0.00029589,6]
[328518861,1717485053225,-523.34,0.00029589,6]
[328518862,1717485053235,-523.34,0.00029589,6]
[328518863,1717485053244,-523.34,0.00029589,6]
[328518864,1717485053253,-523.34,0.00029589,6]
[328518865,1717485053264,-523.34,0.00029589,6]
[328518866,1717485053273,-523.34,0.00029589,6]
[328518867,1717485053282,-523.34,0.00029589,6]
[328518868,1717485053292,-523.34,0.00029589,6]
[328518869,1717485053301,-523.34,0.00029589,6]
[328518870,1717485053311,-523.34,0.00029589,6]
[328518871,1717485053324,-523.34,0.00029589,6]
[328518872,1717485053333,-523.34,0.00029589,6]
[328518873,1717485053343,-523.34,0.00029589,6]
[328518874,1717485053352,-523.34,0.00029589,6]
[328518875,1717485053362,-523.34,0.00029589,6]
[328518876,1717485053373,-523.34,0.00029589,6]
[328518877,1717485053382,-523.34,0.00029589,6]
[328518878,1717485053392,-523.34,0.00029589,6]
[328518879,1717485053403,-523.34,0.00029589,6]
[328518880,1717485053412,-523.34,0.00029589,6]
[328518881,1717485053422,-523.49456085,0.00029589,6]
[328518882,1717485053431,-500.0,0.00029589,6]
[328518883,1717485053440,-503.54411558,0.00029589,6]
[328518884,1717485053450,-500.0,0.00029589,6]
[328518885,1717485053459,-500.0,0.00029589,6]
[328518886,1717485053468,-554.09598782,0.00029589,6]
[328518887,1717485053477,-500.0,0.00029589,6]
[328518888,1717485053486,-500.0,0.00029589,6]
[328518889,1717485053496,-518.10497617,0.00029589,6]
[328518890,1717485053505,-500.0,0.00029589,6]
[328518891,1717485053520,-500.0,0.00029589,6]
[328518892,1717485053540,-500.0,0.00029589,6]
[328518893,1717485053555,-500.0,0.00029589,6]
[328518894,1717485053574,-500.0,0.00029589,6]
[328518895,1717485053593,-500.0,0.00029589,6]
[328518896,1717485053611,-500.0,0.00029589,6]
[328518897,1717485053627,-216.38674665,0.00029589,6]
[328518898,1717485053645,-500.0,0.00029589,6]
[328518899,1717485053658,-500.0,0.00029589,6]
[328518900,1717485053673,-517.58219222,0.00029589,6]
[328518901,1717485053689,-500.0,0.00029589,6]
[328518902,1717485053708,-500.0,0.00029589,6]
[328518903,1717485053722,-500.0,0.00029589,6]
[328518904,1717485053736,-500.0,0.00029589,6]
[328518905,1717485053751,-500.0,0.00029589,6]
[328518906,1717485053764,-500.0,0.00029589,6]
[328518907,1717485053780,-213.16380652,0.00029589,6]
[328518908,1717485053792,-500.0,0.00029589,6]
[328518909,1717485053806,-500.0,0.00029589,6]
[328518910,1717485053820,-500.0,0.00029589,6]
[328518911,1717485053835,-525.78428139,0.00029589,6]
[328518912,1717485053850,-709.29752486,0.00029589,3]
[328518913,1717485053864,-500.0,0.00029589,6]
[328518914,1717485053878,-500.0,0.00029589,6]
[328518915,1717485053891,-496.76278573,0.00029589,6]
[328518916,1717485053905,-500.0,0.00029589,6]
[328518917,1717485053919,-500.0,0.00029589,6]
[328518918,1717485053933,-522.0038308,0.00029589,6]
[328518919,1717485053947,-502.39854772,0.00029589,6]
[328518920,1717485053960,-500.0,0.00029589,6]
[328518921,1717485053975,-501.8,0.00029589,6]
[328518922,1717485053988,-247.93310669,0.00029589,6]
[328518923,1717485054001,-500.0,0.00029589,6]
[328518924,1717485054015,-500.0,0.00029589,6]
[328518925,1717485054029,-500.0,0.00029589,6]
[328518926,1717485054042,-330.02838575,0.00029589,6]
[328518927,1717485054056,-500.0,0.00029589,6]
[328518928,1717485054071,-500.0,0.00029589,6]
[328518929,1717485054085,-500.0,0.00029589,6]
[328518930,1717485054099,-500.0,0.00029589,6]
[328518931,1717485054113,-500.0,0.00029589,6]
[328518932,1717485054127,-500.0,0.00029589,6]
[328518933,1717485054142,-455.97973727,0.00029589,6]
[328518934,1717485054155,-594.83868884,0.00029589,6]
[328518935,1717485054169,-500.0,0.00029589,6]
[328518936,1717485054184,-500.0,0.00029589,6]
[328518937,1717485054198,-504.95543461,0.00029589,6]
[328518938,1717485054212,-500.0,0.00029589,6]
[328518939,1717485054228,-500.0,0.00029589,6]
[328518940,1717485054238,-500.0,0.00029589,6]
[328518941,1717485054247,-500.0,0.00029589,6]
[328518942,1717485054257,-511.69003884,0.00029589,6]
[328518943,1717485054266,-500.0,0.00029589,6]
[328518944,1717485054275,-500.0,0.00029589,6]
[328518945,1717485054285,-500.0,0.00029589,6]
[328518946,1717485054294,-500.0,0.00029589,6]
[328518947,1717485054303,-514.73759428,0.00029589,6]
[328518948,1717485054313,-500.0,0.00029589,6]
[328518949,1717485054326,-437.02562497,0.00029589,6]
[328518950,1717485054336,-500.0,0.00029589,6]
[328518951,1717485054346,-500.0,0.00029589,6]
[328518952,1717485054355,-220.61679406,0.00029589,6]
[328518953,1717485054366,-500.0,0.00029589,2]
[328518954,1717485054375,-500.0,0.00029589,2]